[Event "Titled Tuesday Blitz March 28 Late 2023"]
[White "Ozates, Tuna"]
[Black "Pichot, Alan"]
[WhiteFideId "6354521"]
[BlackFideId "110973"]
[WhiteElo "2151"]
[BlackElo "2573"]
[Result "1-0"]
[Round "02"]
[TimeControl "180+2"]
[Date "2023.03.28"]
[WhiteClock "0:00:03"]
[BlackClock "0:00:02"]

1. e4 {[%clk 0:03:00]}  c5 {[%clk 0:02:58]} 2. Nc3 {[%clk 0:03:00]}  e6 {[%clk 0:02:58]} 3. g3 {[%clk 0:03:00]}  Nc6 {[%clk 0:02:56]} 4. Bg2 {[%clk 0:03:01]}  g6 {[%clk 0:02:57]} 5. d3 {[%clk 0:02:53]}  Bg7 {[%clk 0:02:57]} 6. Be3 {[%clk 0:02:54]}  d6 {[%clk 0:02:56]} 7. Qd2 {[%clk 0:02:54]}  h6 {[%clk 0:02:49]} 8. h4 {[%clk 0:02:53]}  Nge7 {[%clk 0:02:48]} 9. h5 {[%clk 0:02:52]}  g5 {[%clk 0:02:48]} 10. f4 {[%clk 0:02:52]}  g4 {[%clk 0:02:38]} 11. Nge2 {[%clk 0:02:51]}  Nd4 {[%clk 0:02:36]} 12. O-O {[%clk 0:02:45]}  b6 {[%clk 0:02:33]} 13. Rab1 {[%clk 0:02:42]}  Bb7 {[%clk 0:02:32]} 14. Nd1 {[%clk 0:02:42]}  f5 {[%clk 0:02:25]} 15. c3 {[%clk 0:02:40]}  Nf3+ {[%clk 0:02:22]} 16. Bxf3 {[%clk 0:02:40]}  gxf3 {[%clk 0:02:22]} 17. Rxf3 {[%clk 0:02:40]}  fxe4 {[%clk 0:02:23]} 18. Rf1 {[%clk 0:02:39]}  Nf5 {[%clk 0:02:20]} 19. Nf2 {[%clk 0:02:37]}  exd3 {[%clk 0:02:15]} 20. Qxd3 {[%clk 0:02:38]}  Bf6 {[%clk 0:02:13]} 21. g4 {[%clk 0:02:33]}  Rg8 {[%clk 0:02:12]} 22. Kh2 {[%clk 0:02:23]}  Bh4 {[%clk 0:01:09]} 23. Rg1 {[%clk 0:01:43]}  Nxe3 {[%clk 0:00:40]} 24. Qxe3 {[%clk 0:01:39]}  Bxf2 {[%clk 0:00:40]} 25. Qxf2 {[%clk 0:01:34]}  Qf6 {[%clk 0:00:41]} 26. Kh3 {[%clk 0:01:21]}  O-O-O {[%clk 0:00:40]} 27. a4 {[%clk 0:01:18]}  Rdf8 {[%clk 0:00:38]} 28. a5 {[%clk 0:01:16]}  Ba6 {[%clk 0:00:22]} 29. axb6 {[%clk 0:01:07]}  axb6 {[%clk 0:00:22]} 30. Ra1 {[%clk 0:00:46]}  Bb7 {[%clk 0:00:20]} 31. Qe3 {[%clk 0:00:34]}  Kb8 {[%clk 0:00:18]} 32. Ra3 {[%clk 0:00:31]}  e5 {[%clk 0:00:13]} 33. f5 {[%clk 0:00:25]}  Qg5 {[%clk 0:00:14]} 34. Qd3 {[%clk 0:00:24]}  Rf6 {[%clk 0:00:08]} 35. Rb3 {[%clk 0:00:22]}  d5 {[%clk 0:00:06]} 36. c4 {[%clk 0:00:21]}  e4 {[%clk 0:00:06]} 37. Qg3+ {[%clk 0:00:21]}  Kc8 {[%clk 0:00:06]} 38. cxd5 {[%clk 0:00:16]}  Bxd5 {[%clk 0:00:07]} 39. Ra3 {[%clk 0:00:16]}  Rxf5 {[%clk 0:00:05]} 40. Rd1 {[%clk 0:00:02]}  Rf3 {[%clk 0:00:02]} 41. Rxf3 {[%clk 0:00:02]}  exf3 {[%clk 0:00:02]} 42. Nf4 {[%clk 0:00:03]}  Be4 {[%clk 0:00:02]} 43. Ne6 {[%clk 0:00:03]}  Qe7 {[%clk 0:00:02]} 44. Qe5 {[%clk 0:00:03]}  Bc6 {[%clk 0:00:01]} 45. Rd6 {[%clk 0:00:04]}  f2 {[%clk 0:00:01]} 46. Rxc6+ {[%clk 0:00:04]}  Kb7 {[%clk 0:00:01]} 47. Rc7+ {[%clk 0:00:05]}  Ka6 {[%clk 0:00:02]} 48. Rxe7 {[%clk 0:00:04]}  f1=Q+ {[%clk 0:00:02]} 49. Kh4 {[%clk 0:00:04]}  Qh1+ {[%clk 0:00:02]} 50. Kg3 {[%clk 0:00:03]}  Qg1+ {[%clk 0:00:02]} 51. Kf3 {[%clk 0:00:03]}  Qxg4+ {[%clk 0:00:02]} 52. Ke3 {[%clk 0:00:03]}  Qg1+ {[%clk 0:00:02]} 53. Ke4 {[%clk 0:00:03]} 1-0


[Site "https://www.chess.com"]

[Event "Titled Tuesday Blitz March 28 Late 2023"]
[White "Timmermans, Mark"]
[Black "cryptoguru02"]
[WhiteFideId "1026399"]
[WhiteElo "2460"]
[BlackElo "2547"]
[Result "1-0"]
[Round "02"]
[TimeControl "180+2"]
[Date "2023.03.28"]
[WhiteClock "0:01:43"]
[BlackClock "0:00:35"]

1. e4 {[%clk 0:03:00]}  e5 {[%clk 0:02:59]} 2. Nf3 {[%clk 0:02:59]}  Nc6 {[%clk 0:03:00]} 3. c3 {[%clk 0:02:59]}  d5 {[%clk 0:02:57]} 4. Bb5 {[%clk 0:02:58]}  f6 {[%clk 0:02:55]} 5. Qa4 {[%clk 0:02:52]}  Ne7 {[%clk 0:02:50]} 6. exd5 {[%clk 0:02:52]}  Qxd5 {[%clk 0:02:49]} 7. O-O {[%clk 0:02:52]}  a6 {[%clk 0:02:36]} 8. Na3 {[%clk 0:02:46]}  Bd7 {[%clk 0:02:32]} 9. Bc4 {[%clk 0:02:44]}  Qc5 {[%clk 0:02:12]} 10. b4 {[%clk 0:02:34]}  Qa7 {[%clk 0:02:04]} 11. Qb3 {[%clk 0:02:34]}  Nf5 {[%clk 0:01:47]} 12. Bf7+ {[%clk 0:02:21]}  Kd8 {[%clk 0:01:47]} 13. Be6 {[%clk 0:02:21]}  Bd6 {[%clk 0:01:19]} 14. Nc2 {[%clk 0:02:20]}  Re8 {[%clk 0:01:12]} 15. Bxd7 {[%clk 0:02:19]}  Kxd7 {[%clk 0:01:13]} 16. d3 {[%clk 0:02:15]}  Re7 {[%clk 0:01:12]} 17. Ne3 {[%clk 0:02:10]}  Nxe3 {[%clk 0:01:06]} 18. Bxe3 {[%clk 0:02:11]}  Qb8 {[%clk 0:01:06]} 19. a4 {[%clk 0:02:11]}  Qg8 {[%clk 0:01:06]} 20. Qc2 {[%clk 0:02:09]}  g5 {[%clk 0:00:59]} 21. b5 {[%clk 0:02:08]}  Nd8 {[%clk 0:00:58]} 22. d4 {[%clk 0:02:05]}  g4 {[%clk 0:00:56]} 23. Nh4 {[%clk 0:02:06]}  Ne6 {[%clk 0:00:50]} 24. d5 {[%clk 0:02:00]}  Nc5 {[%clk 0:00:44]} 25. Nf5 {[%clk 0:02:01]}  Ree8 {[%clk 0:00:39]} 26. Nxd6 {[%clk 0:01:59]}  cxd6 {[%clk 0:00:40]} 27. Qf5+ {[%clk 0:01:57]}  Kc7 {[%clk 0:00:37]} 28. Bxc5 {[%clk 0:01:50]}  dxc5 {[%clk 0:00:38]} 29. d6+ {[%clk 0:01:51]}  Kxd6 {[%clk 0:00:36]} 30. Rfd1+ {[%clk 0:01:45]}  Kc7 {[%clk 0:00:36]} 31. Qd7+ {[%clk 0:01:42]}  Kb8 {[%clk 0:00:35]} 32. b6 {[%clk 0:01:43]} 1-0


[Site "https://www.chess.com"]

[Event "Titled Tuesday Blitz March 28 Late 2023"]
[White "Pert, Richard G"]
[Black "Perez Ponsa, Federico"]
[WhiteFideId "404748"]
[BlackFideId "117927"]
[WhiteElo "2441"]
[BlackElo "2592"]
[Result "0-1"]
[Round "02"]
[TimeControl "180+2"]
[Date "2023.03.28"]
[WhiteClock "0:00:03"]
[BlackClock "0:00:08"]

1. d4 {[%clk 0:03:00]}  Nf6 {[%clk 0:02:56]} 2. Bg5 {[%clk 0:03:00]}  c5 {[%clk 0:02:56]} 3. Nc3 {[%clk 0:02:55]}  cxd4 {[%clk 0:02:56]} 4. Qxd4 {[%clk 0:02:55]}  Nc6 {[%clk 0:02:57]} 5. Qh4 {[%clk 0:02:55]}  d6 {[%clk 0:02:57]} 6. e4 {[%clk 0:02:51]}  Be6 {[%clk 0:02:55]} 7. O-O-O {[%clk 0:02:47]}  Rc8 {[%clk 0:02:54]} 8. a3 {[%clk 0:02:37]}  Qa5 {[%clk 0:02:52]} 9. Nf3 {[%clk 0:02:26]}  a6 {[%clk 0:02:35]} 10. Kb1 {[%clk 0:02:16]}  b5 {[%clk 0:02:34]} 11. Nd5 {[%clk 0:02:09]}  b4 {[%clk 0:02:31]} 12. axb4 {[%clk 0:02:00]}  Nxb4 {[%clk 0:02:25]} 13. Nxb4 {[%clk 0:02:00]}  Qxb4 {[%clk 0:02:25]} 14. Bxf6 {[%clk 0:01:59]}  gxf6 {[%clk 0:02:22]} 15. Nd4 {[%clk 0:01:39]}  Rb8 {[%clk 0:02:17]} 16. b3 {[%clk 0:01:36]}  Bd7 {[%clk 0:02:15]} 17. Qg3 {[%clk 0:01:13]}  a5 {[%clk 0:02:11]} 18. Ka2 {[%clk 0:00:58]}  a4 {[%clk 0:01:53]} 19. Bc4 {[%clk 0:00:58]}  Ra8 {[%clk 0:01:19]} 20. Kb1 {[%clk 0:00:56]}  Qa3 {[%clk 0:01:00]} 21. Nb5 {[%clk 0:00:51]}  Qc5 {[%clk 0:00:57]} 22. Qe3 {[%clk 0:00:45]}  Qxe3 {[%clk 0:00:53]} 23. fxe3 {[%clk 0:00:45]}  Ra5 {[%clk 0:00:50]} 24. Nc7+ {[%clk 0:00:41]}  Kd8 {[%clk 0:00:49]} 25. Nd5 {[%clk 0:00:40]}  axb3 {[%clk 0:00:46]} 26. cxb3 {[%clk 0:00:40]}  Bg7 {[%clk 0:00:34]} 27. Kc2 {[%clk 0:00:37]}  f5 {[%clk 0:00:32]} 28. b4 {[%clk 0:00:33]}  Ra3 {[%clk 0:00:21]} 29. Rd3 {[%clk 0:00:31]}  Rxd3 {[%clk 0:00:14]} 30. Bxd3 {[%clk 0:00:29]}  fxe4 {[%clk 0:00:09]} 31. Bxe4 {[%clk 0:00:30]}  e6 {[%clk 0:00:09]} 32. Nb6 {[%clk 0:00:28]}  d5 {[%clk 0:00:06]} 33. Bd3 {[%clk 0:00:26]}  Kc7 {[%clk 0:00:05]} 34. Nxd7 {[%clk 0:00:25]}  Kxd7 {[%clk 0:00:05]} 35. Kb3 {[%clk 0:00:22]}  Rc8 {[%clk 0:00:05]} 36. Rd1 {[%clk 0:00:13]}  Kd6 {[%clk 0:00:05]} 37. h4 {[%clk 0:00:11]}  f5 {[%clk 0:00:05]} 38. h5 {[%clk 0:00:10]}  h6 {[%clk 0:00:05]} 39. g3 {[%clk 0:00:10]}  Be5 {[%clk 0:00:06]} 40. b5 {[%clk 0:00:09]}  Bxg3 {[%clk 0:00:06]} 41. Rd2 {[%clk 0:00:08]}  Be5 {[%clk 0:00:05]} 42. Rc2 {[%clk 0:00:08]}  Rxc2 {[%clk 0:00:04]} 43. Kxc2 {[%clk 0:00:07]}  Kc5 {[%clk 0:00:04]} 44. Kd2 {[%clk 0:00:07]}  Bf6 {[%clk 0:00:04]} 45. Ke2 {[%clk 0:00:07]}  Bg5 {[%clk 0:00:04]} 46. Kf3 {[%clk 0:00:07]}  Kd6 {[%clk 0:00:03]} 47. Be2 {[%clk 0:00:07]}  e5 {[%clk 0:00:03]} 48. Bf1 {[%clk 0:00:08]}  e4+ {[%clk 0:00:04]} 49. Ke2 {[%clk 0:00:08]}  Bd8 {[%clk 0:00:04]} 50. Bh3 {[%clk 0:00:08]}  Ke5 {[%clk 0:00:04]} 51. Bg2 {[%clk 0:00:08]}  Bb6 {[%clk 0:00:05]} 52. Bh3 {[%clk 0:00:08]}  f4 {[%clk 0:00:05]} 53. exf4+ {[%clk 0:00:08]}  Kxf4 {[%clk 0:00:06]} 54. Be6 {[%clk 0:00:07]}  d4 {[%clk 0:00:06]} 55. Bc4 {[%clk 0:00:06]}  Kg5 {[%clk 0:00:07]} 56. Bf7 {[%clk 0:00:06]}  d3+ {[%clk 0:00:07]} 57. Kd2 {[%clk 0:00:06]}  Kf4 {[%clk 0:00:06]} 58. Bc4 {[%clk 0:00:07]}  Ba5+ {[%clk 0:00:07]} 59. Kd1 {[%clk 0:00:06]}  Ke5 {[%clk 0:00:07]} 60. Kc1 {[%clk 0:00:05]}  Kd4 {[%clk 0:00:07]} 61. Be6 {[%clk 0:00:05]}  e3 {[%clk 0:00:08]} 62. Bg4 {[%clk 0:00:05]}  e2 {[%clk 0:00:08]} 63. Kb2 {[%clk 0:00:03]}  e1=Q {[%clk 0:00:08]} 0-1


[Site "https://www.chess.com"]

[Event "Titled Tuesday Blitz March 28 Late 2023"]
[White "Urazayev, Arystanbek"]
[Black "Defend1r"]
[WhiteFideId "13709810"]
[WhiteElo "2479"]
[BlackElo "2545"]
[Result "1/2-1/2"]
[Round "02"]
[TimeControl "180+2"]
[Date "2023.03.28"]
[WhiteClock "0:00:02"]
[BlackClock "0:00:10"]

1. e4 {[%clk 0:03:00]}  c5 {[%clk 0:02:59]} 2. Nf3 {[%clk 0:03:01]}  d6 {[%clk 0:02:59]} 3. d4 {[%clk 0:03:02]}  cxd4 {[%clk 0:03:00]} 4. Nxd4 {[%clk 0:03:03]}  Nf6 {[%clk 0:03:01]} 5. Nc3 {[%clk 0:03:03]}  a6 {[%clk 0:03:01]} 6. Be2 {[%clk 0:03:02]}  e5 {[%clk 0:03:01]} 7. Nb3 {[%clk 0:03:03]}  Be7 {[%clk 0:03:01]} 8. h4 {[%clk 0:03:04]}  Be6 {[%clk 0:02:58]} 9. f4 {[%clk 0:03:04]}  exf4 {[%clk 0:02:38]} 10. Bxf4 {[%clk 0:03:03]}  d5 {[%clk 0:02:30]} 11. Nd4 {[%clk 0:02:43]}  Nxe4 {[%clk 0:02:21]} 12. Nxe4 {[%clk 0:02:40]}  dxe4 {[%clk 0:02:17]} 13. Nxe6 {[%clk 0:02:41]}  fxe6 {[%clk 0:02:03]} 14. Qxd8+ {[%clk 0:02:38]}  Bxd8 {[%clk 0:02:04]} 15. Bc4 {[%clk 0:02:34]}  Nc6 {[%clk 0:01:40]} 16. O-O-O {[%clk 0:02:32]}  e5 {[%clk 0:01:27]} 17. Be3 {[%clk 0:02:32]}  Be7 {[%clk 0:01:15]} 18. Bd5 {[%clk 0:02:32]}  Rd8 {[%clk 0:01:15]} 19. Bxe4 {[%clk 0:02:29]}  Rxd1+ {[%clk 0:01:15]} 20. Kxd1 {[%clk 0:02:29]}  h6 {[%clk 0:01:12]} 21. c3 {[%clk 0:02:23]}  Rf8 {[%clk 0:01:11]} 22. Ke2 {[%clk 0:02:17]}  Kd7 {[%clk 0:01:05]} 23. g4 {[%clk 0:02:12]}  Kc7 {[%clk 0:01:04]} 24. g5 {[%clk 0:02:12]}  hxg5 {[%clk 0:01:01]} 25. hxg5 {[%clk 0:02:12]}  Nd8 {[%clk 0:00:58]} 26. Bd5 {[%clk 0:02:09]}  Kd6 {[%clk 0:00:47]} 27. Bb3 {[%clk 0:02:06]}  Rf5 {[%clk 0:00:39]} 28. Rg1 {[%clk 0:01:54]}  b5 {[%clk 0:00:35]} 29. a4 {[%clk 0:01:49]}  e4 {[%clk 0:00:30]} 30. Bc2 {[%clk 0:01:45]}  Ke5 {[%clk 0:00:26]} 31. Rg4 {[%clk 0:01:44]}  Ne6 {[%clk 0:00:21]} 32. Rxe4+ {[%clk 0:01:44]}  Kd6 {[%clk 0:00:22]} 33. axb5 {[%clk 0:00:54]}  axb5 {[%clk 0:00:22]} 34. Bd3 {[%clk 0:00:48]}  Bxg5 {[%clk 0:00:20]} 35. Bxg5 {[%clk 0:00:32]}  Rxg5 {[%clk 0:00:20]} 36. Rb4 {[%clk 0:00:29]}  Kc6 {[%clk 0:00:19]} 37. Be4+ {[%clk 0:00:20]}  Kc5 {[%clk 0:00:18]} 38. Bf3 {[%clk 0:00:19]}  Re5+ {[%clk 0:00:18]} 39. Kd2 {[%clk 0:00:19]}  g5 {[%clk 0:00:18]} 40. Be2 {[%clk 0:00:18]}  Kc6 {[%clk 0:00:18]} 41. Rg4 {[%clk 0:00:17]}  Nf4 {[%clk 0:00:18]} 42. Bf3+ {[%clk 0:00:17]}  Kc5 {[%clk 0:00:18]} 43. Rg1 {[%clk 0:00:17]}  b4 {[%clk 0:00:18]} 44. Ra1 {[%clk 0:00:15]}  bxc3+ {[%clk 0:00:18]} 45. bxc3 {[%clk 0:00:16]}  Kd6 {[%clk 0:00:18]} 46. Ra6+ {[%clk 0:00:16]}  Ke7 {[%clk 0:00:19]} 47. c4 {[%clk 0:00:16]}  Ne6 {[%clk 0:00:19]} 48. Bd5 {[%clk 0:00:15]}  Nf4 {[%clk 0:00:18]} 49. Bb7 {[%clk 0:00:14]}  g4 {[%clk 0:00:16]} 50. Kc3 {[%clk 0:00:11]}  g3 {[%clk 0:00:16]} 51. Kd4 {[%clk 0:00:12]}  Re1 {[%clk 0:00:14]} 52. Ra7 {[%clk 0:00:11]}  Kf6 {[%clk 0:00:13]} 53. Ra6+ {[%clk 0:00:10]}  Kg5 {[%clk 0:00:13]} 54. Ra8 {[%clk 0:00:10]}  Ng6 {[%clk 0:00:13]} 55. c5 {[%clk 0:00:09]}  Rd1+ {[%clk 0:00:13]} 56. Kc3 {[%clk 0:00:09]}  Rc1+ {[%clk 0:00:12]} 57. Kd4 {[%clk 0:00:09]}  Rd1+ {[%clk 0:00:13]} 58. Ke3 {[%clk 0:00:10]}  Rc1 {[%clk 0:00:13]} 59. Ra5 {[%clk 0:00:10]}  Kg4 {[%clk 0:00:10]} 60. Bf3+ {[%clk 0:00:10]}  Kh3 {[%clk 0:00:10]} 61. c6 {[%clk 0:00:09]}  Nh4 {[%clk 0:00:10]} 62. Be4 {[%clk 0:00:09]}  g2 {[%clk 0:00:09]} 63. Bxg2+ {[%clk 0:00:07]}  Nxg2+ {[%clk 0:00:10]} 64. Kf2 {[%clk 0:00:08]}  Rc2+ {[%clk 0:00:10]} 65. Kf3 {[%clk 0:00:08]}  Rc3+ {[%clk 0:00:11]} 66. Kf2 {[%clk 0:00:08]}  Rxc6 {[%clk 0:00:11]} 67. Rh5+ {[%clk 0:00:07]}  Nh4 {[%clk 0:00:11]} 68. Ra5 {[%clk 0:00:08]}  Kg4 {[%clk 0:00:11]} 69. Ke3 {[%clk 0:00:09]}  Nf5+ {[%clk 0:00:11]} 70. Ke4 {[%clk 0:00:09]}  Re6+ {[%clk 0:00:11]} 71. Kd5 {[%clk 0:00:09]}  Re1 {[%clk 0:00:12]} 72. Ra4+ {[%clk 0:00:09]}  Kg5 {[%clk 0:00:12]} 73. Ra8 {[%clk 0:00:09]}  Rd1+ {[%clk 0:00:13]} 74. Ke4 {[%clk 0:00:09]}  Re1+ {[%clk 0:00:13]} 75. Kd5 {[%clk 0:00:09]}  Kf4 {[%clk 0:00:13]} 76. Ra4+ {[%clk 0:00:09]}  Kf3 {[%clk 0:00:13]} 77. Ra8 {[%clk 0:00:09]}  Ne3+ {[%clk 0:00:13]} 78. Kd4 {[%clk 0:00:09]}  Rd1+ {[%clk 0:00:14]} 79. Ke5 {[%clk 0:00:09]}  Rd5+ {[%clk 0:00:13]} 80. Ke6 {[%clk 0:00:10]}  Rc5 {[%clk 0:00:14]} 81. Kd6 {[%clk 0:00:10]}  Rg5 {[%clk 0:00:13]} 82. Ke6 {[%clk 0:00:11]}  Ke4 {[%clk 0:00:13]} 83. Ra4+ {[%clk 0:00:11]}  Kd3 {[%clk 0:00:13]} 84. Ra8 {[%clk 0:00:12]}  Nc4 {[%clk 0:00:13]} 85. Kf6 {[%clk 0:00:12]}  Rd5 {[%clk 0:00:13]} 86. Ra1 {[%clk 0:00:11]}  Ke4 {[%clk 0:00:13]} 87. Ke6 {[%clk 0:00:12]}  Re5+ {[%clk 0:00:13]} 88. Kf6 {[%clk 0:00:12]}  Rc5 {[%clk 0:00:13]} 89. Ke6 {[%clk 0:00:12]}  Ne3 {[%clk 0:00:13]} 90. Ra4+ {[%clk 0:00:12]}  Nc4 {[%clk 0:00:14]} 91. Ra1 {[%clk 0:00:12]}  Rc6+ {[%clk 0:00:14]} 92. Kd7 {[%clk 0:00:13]}  Rd6+ {[%clk 0:00:15]} 93. Kc7 {[%clk 0:00:13]}  Rg6 {[%clk 0:00:15]} 94. Rh1 {[%clk 0:00:12]}  Kd5 {[%clk 0:00:15]} 95. Rd1+ {[%clk 0:00:11]}  Kc5 {[%clk 0:00:15]} 96. Rc1 {[%clk 0:00:12]}  Rg7+ {[%clk 0:00:15]} 97. Kc8 {[%clk 0:00:13]}  Kd5 {[%clk 0:00:15]} 98. Kd8 {[%clk 0:00:11]}  Ne5 {[%clk 0:00:14]} 99. Rd1+ {[%clk 0:00:10]}  Kc6 {[%clk 0:00:14]} 100. Ke8 {[%clk 0:00:09]}  Nd7 {[%clk 0:00:12]} 101. Rc1+ {[%clk 0:00:09]}  Nc5 {[%clk 0:00:12]} 102. Kf8 {[%clk 0:00:08]}  Rd7 {[%clk 0:00:11]} 103. Ke8 {[%clk 0:00:08]}  Rb7 {[%clk 0:00:11]} 104. Kf8 {[%clk 0:00:08]}  Kd6 {[%clk 0:00:11]} 105. Rd1+ {[%clk 0:00:08]}  Ke5 {[%clk 0:00:12]} 106. Re1+ {[%clk 0:00:08]}  Ne4 {[%clk 0:00:12]} 107. Ke8 {[%clk 0:00:08]}  Kd5 {[%clk 0:00:11]} 108. Kf8 {[%clk 0:00:08]}  Nd6 {[%clk 0:00:11]} 109. Rd1+ {[%clk 0:00:07]}  Ke6 {[%clk 0:00:11]} 110. Kg8 {[%clk 0:00:05]}  Nf5 {[%clk 0:00:10]} 111. Ra1 {[%clk 0:00:03]}  Kf6 {[%clk 0:00:11]} 112. Ra6+ {[%clk 0:00:03]}  Kg5 {[%clk 0:00:11]} 113. Kf8 {[%clk 0:00:01]}  Ng7 {[%clk 0:00:11]} 114. Kg8 {[%clk 0:00:01]}  Kf5 {[%clk 0:00:10]} 115. Kf8 {[%clk 0:00:02]}  Ne6+ {[%clk 0:00:10]} 116. Ke8 {[%clk 0:00:02]}  Kf6 {[%clk 0:00:10]} 1/2-1/2


[Site "https://www.chess.com"]

[Event "Titled Tuesday Blitz March 28 Late 2023"]
[White "Gorodetzky, David"]
[Black "Dobre, Claudiu-Cristian"]
[WhiteFideId "2813416"]
[BlackFideId "1211854"]
[WhiteElo "2484"]
[BlackElo "2207"]
[Result "1-0"]
[Round "02"]
[TimeControl "180+2"]
[Date "2023.03.28"]
[WhiteClock "0:02:04"]
[BlackClock "0:00:01"]

1. d4 {[%clk 0:03:00]}  f5 {[%clk 0:02:59]} 2. Nf3 {[%clk 0:02:57]}  Nf6 {[%clk 0:02:58]} 3. g3 {[%clk 0:02:57]}  g6 {[%clk 0:02:58]} 4. Bg2 {[%clk 0:02:57]}  Bg7 {[%clk 0:02:58]} 5. O-O {[%clk 0:02:58]}  O-O {[%clk 0:02:58]} 6. Nbd2 {[%clk 0:02:58]}  d6 {[%clk 0:02:55]} 7. c3 {[%clk 0:02:58]}  Nc6 {[%clk 0:02:13]} 8. Qb3+ {[%clk 0:02:57]}  d5 {[%clk 0:02:13]} 9. a4 {[%clk 0:02:54]}  a5 {[%clk 0:02:08]} 10. Ne5 {[%clk 0:02:50]}  e6 {[%clk 0:01:56]} 11. Ndf3 {[%clk 0:02:48]}  Nxe5 {[%clk 0:01:17]} 12. Nxe5 {[%clk 0:02:47]}  Nd7 {[%clk 0:01:17]} 13. Nd3 {[%clk 0:02:46]}  b6 {[%clk 0:01:12]} 14. Bxd5 {[%clk 0:02:40]}  Nc5 {[%clk 0:01:04]} 15. dxc5 {[%clk 0:02:34]}  Qxd5 {[%clk 0:00:50]} 16. Qxd5 {[%clk 0:02:32]}  exd5 {[%clk 0:00:51]} 17. cxb6 {[%clk 0:02:31]}  cxb6 {[%clk 0:00:51]} 18. Be3 {[%clk 0:02:31]}  Ba6 {[%clk 0:00:42]} 19. Rfd1 {[%clk 0:02:31]}  Bc4 {[%clk 0:00:25]} 20. Bxb6 {[%clk 0:02:26]}  Rfb8 {[%clk 0:00:24]} 21. Bc5 {[%clk 0:02:25]}  Bxd3 {[%clk 0:00:23]} 22. Rxd3 {[%clk 0:02:23]}  Rxb2 {[%clk 0:00:23]} 23. e3 {[%clk 0:02:23]}  Rb3 {[%clk 0:00:15]} 24. Rxd5 {[%clk 0:02:22]}  Rxc3 {[%clk 0:00:13]} 25. Rb1 {[%clk 0:02:21]}  Rc8 {[%clk 0:00:11]} 26. Be7 {[%clk 0:02:14]}  R8c7 {[%clk 0:00:09]} 27. Rb8+ {[%clk 0:02:13]}  Kf7 {[%clk 0:00:09]} 28. Bd8 {[%clk 0:02:12]}  Ra7 {[%clk 0:00:08]} 29. Rxa5 {[%clk 0:02:07]}  Rxa5 {[%clk 0:00:06]} 30. Bxa5 {[%clk 0:02:08]}  Rc1+ {[%clk 0:00:06]} 31. Kg2 {[%clk 0:02:08]}  Be5 {[%clk 0:00:03]} 32. Rb5 {[%clk 0:02:06]}  Ke6 {[%clk 0:00:03]} 33. Bb6 {[%clk 0:02:06]}  Bc3 {[%clk 0:00:01]} 34. Rc5 {[%clk 0:02:05]}  Bd2 {[%clk 0:00:01]} 35. Rxc1 {[%clk 0:02:04]}  Bxc1 {[%clk 0:00:01]} 36. a5 {[%clk 0:02:05]}  Kd5 {[%clk 0:00:01]} 37. a6 {[%clk 0:02:05]}  Kc6 {[%clk 0:00:01]} 38. Bd4 {[%clk 0:02:04]}  g5 {[%clk 0:00:02]} 39. Kf3 {[%clk 0:02:04]}  Bd2 {[%clk 0:00:02]} 40. g4 {[%clk 0:02:03]}  fxg4+ {[%clk 0:00:01]} 41. Kxg4 {[%clk 0:02:04]}  Be1 {[%clk 0:00:01]} 42. f3 {[%clk 0:02:04]}  h6 {[%clk 0:00:01]} 43. Kh5 {[%clk 0:02:04]}  Bf2 {[%clk 0:00:01]} 44. Kxh6 {[%clk 0:02:04]}  Bg1 {[%clk 0:00:01]} 45. h3 {[%clk 0:02:04]} 1-0


[Site "https://www.chess.com"]

[Event "Titled Tuesday Blitz March 28 Late 2023"]
[White "Melkumyan, Hrant"]
[Black "Hajiyev, Kanan"]
[WhiteFideId "13302485"]
[BlackFideId "13404148"]
[WhiteElo "2604"]
[BlackElo "2103"]
[Result "1-0"]
[Round "02"]
[TimeControl "180+2"]
[Date "2023.03.28"]
[WhiteClock "0:01:38"]
[BlackClock "0:00:01"]

1. d4 {[%clk 0:03:00]}  d5 {[%clk 0:02:58]} 2. c4 {[%clk 0:02:58]}  e6 {[%clk 0:02:58]} 3. Nc3 {[%clk 0:02:57]}  Nf6 {[%clk 0:02:54]} 4. cxd5 {[%clk 0:02:55]}  exd5 {[%clk 0:02:53]} 5. Bg5 {[%clk 0:02:55]}  c6 {[%clk 0:02:52]} 6. e3 {[%clk 0:02:54]}  Be7 {[%clk 0:02:49]} 7. Bd3 {[%clk 0:02:51]}  O-O {[%clk 0:02:47]} 8. Qc2 {[%clk 0:02:49]}  h6 {[%clk 0:02:46]} 9. Bf4 {[%clk 0:02:46]}  Re8 {[%clk 0:02:38]} 10. h3 {[%clk 0:02:44]}  Bd6 {[%clk 0:02:32]} 11. Nge2 {[%clk 0:02:44]}  Bxf4 {[%clk 0:02:24]} 12. Nxf4 {[%clk 0:02:45]}  Nbd7 {[%clk 0:02:24]} 13. O-O {[%clk 0:02:43]}  Nf8 {[%clk 0:02:22]} 14. b4 {[%clk 0:02:43]}  a6 {[%clk 0:01:43]} 15. a4 {[%clk 0:02:42]}  Ne6 {[%clk 0:01:40]} 16. Nce2 {[%clk 0:02:39]}  Nxf4 {[%clk 0:01:34]} 17. Nxf4 {[%clk 0:02:40]}  Ne4 {[%clk 0:01:30]} 18. Rfc1 {[%clk 0:02:35]}  Bd7 {[%clk 0:01:27]} 19. b5 {[%clk 0:02:29]}  axb5 {[%clk 0:01:21]} 20. axb5 {[%clk 0:02:27]}  Rxa1 {[%clk 0:01:19]} 21. Rxa1 {[%clk 0:02:28]}  Qb6 {[%clk 0:01:09]} 22. bxc6 {[%clk 0:02:24]}  bxc6 {[%clk 0:00:57]} 23. Qb1 {[%clk 0:02:23]}  Qc7 {[%clk 0:00:46]} 24. Qc1 {[%clk 0:02:17]}  Rc8 {[%clk 0:00:38]} 25. Qa3 {[%clk 0:02:13]}  Nd6 {[%clk 0:00:35]} 26. Qc5 {[%clk 0:02:09]}  Nb7 {[%clk 0:00:32]} 27. Qe7 {[%clk 0:02:05]}  Qd6 {[%clk 0:00:20]} 28. Qxd6 {[%clk 0:01:56]}  Nxd6 {[%clk 0:00:21]} 29. Ra7 {[%clk 0:01:57]}  Be8 {[%clk 0:00:17]} 30. g4 {[%clk 0:01:57]}  Rd8 {[%clk 0:00:09]} 31. Kg2 {[%clk 0:01:57]}  g6 {[%clk 0:00:09]} 32. h4 {[%clk 0:01:53]}  Rc8 {[%clk 0:00:08]} 33. g5 {[%clk 0:01:51]}  hxg5 {[%clk 0:00:05]} 34. hxg5 {[%clk 0:01:52]}  Rd8 {[%clk 0:00:05]} 35. Kg3 {[%clk 0:01:52]}  Rd7 {[%clk 0:00:05]} 36. Ra8 {[%clk 0:01:51]}  Kg7 {[%clk 0:00:06]} 37. Ra6 {[%clk 0:01:43]}  Re7 {[%clk 0:00:05]} 38. Nxd5 {[%clk 0:01:39]}  Rd7 {[%clk 0:00:03]} 39. Nf6 {[%clk 0:01:39]}  Rc7 {[%clk 0:00:02]} 40. Ra8 {[%clk 0:01:38]}  Re7 {[%clk 0:00:01]} 41. e4 {[%clk 0:01:38]} 1-0


[Site "https://www.chess.com"]